Workbook

Sheet Master
A1: ID | B1: CODE | C1: Date Seen | D1: =VLOOKUP(#REF!,A6:A14799,1,FALSE) ->  | J1: Decayed? | K1: =COUNTIF($B$6:$B$18832,"MV") -> 0 | L1: Name | M1: INTL | N1: Vector? | O1: Geo? | P1: Variable? | Q1: Check? | R1: Check? | T1: PPAS | U1: INTL | W1: =U1 -> INTL | X1: INTL | AJ1: =COUNTIF($B$6:$B$29835,"S") -> 6,966 | AK1: Starlinks seen of | AL1: 9,093 | AM1: =AJ1/AL1 -> 77% of total | AN1: S | AO1: STARLINK | AP1: D | AQ1: DECLASSIFIED | AR1: ID | AS1: ID PRIOR CVNAMES
A2: 66587 | B2: =IF(H2=0,"",H2) ->  | C2: =IF(ISERROR($I$2)=TRUE,"NOT SEEN",$I$2) -> NOT SEEN | D2: =IF(E2<>"",E2,IF(F2<>"",F2,IF(G2<>"",G2,IF(H2<>"",H2)))) ->  | E2: =IF((VLOOKUP(A6,$A$7:$B$44836,2,FALSE)="I"),"I","") ->  | F2: =IF((VLOOKUP(A6,$A$7:$B$44836,2,FALSE)="S"),"S","") ->  | G2: =IF((VLOOKUP(A6,$A$7:$B$44836,2,FALSE)="OX"),"OX","") ->  | H2: =VLOOKUP($A$2,$A$6:$B$29967,2,FALSE) ->  | I2: =VLOOKUP(A2,A6:C34291,3,FALSE) ->  | J2: =IF(ISERROR(I3),"No",I3) -> No | K2: =COUNTIF($B$6:$B$18832,"M") -> 0 | L2: =IF(AF2=FALSE,AB2,IF(AG2=FALSE,AC2,IF(AH2=FALSE,AD2,IF(AI2=FALSE,AE2,"")))) ->  | M2: =CONCATENATE(U2," ",X2) -> 59 1A | N2: =IF(ISERROR(#REF!)=TRUE,"NO","YES") -> NO | O2: =IF(ISERROR(#REF!)=TRUE,"NO",#REF!) -> NO | P2: =VLOOKUP(A6,'[1]FPAS Dump'!A:J,8,FALSE) ->  | Q2: =VLOOKUP(A6,'[1]FPAS Dump'!B:J,8,FALSE) ->  | R2: =IF(ISERROR(Q2),"No",(IF(Q2=0,"","Check"))) -> No | S2: =IF(ISERROR(P2),"No",(IF(P2=0,"",P2))) -> No | T2: =IF(S2="Y",AA2,S2) -> No | U2: =VLOOKUP(A6,[1]highfly!A:D,3,FALSE) -> 59 | X2: =VLOOKUP(A6,[1]highfly!A:D,4,FALSE) -> 1A | AA2: =IF(ISERROR(AB2)=TRUE,"No",AB2) -> No | AB2: =VLOOKUP(A2,[1]mcnames!A:B,2,FALSE) ->  | AC2: =VLOOKUP(A2,[1]highfly!A:E,5,FALSE) ->  | AD2: =VLOOKUP(A2,[1]ActiveSats!A:B,2,FALSE) ->  | AE2: =VLOOKUP(#REF!,#REF!,3,FALSE) ->  | AF2: =ISERROR(AB2) -> TRUE | AG2: =ISERROR(AC2) -> TRUE | AH2: =ISERROR(AD2) -> TRUE | AI2: =ISERROR(AE2) -> TRUE | AJ2: =COUNTIF($B$6:$B$29835,"ox") -> 284 | AK2: Analysis | AL2: OX | AM2: ANALYSIS | AN2: F | AO2: FOUND | AP2: V | AQ2: VISUAL AFTER ONLY IMAGED
B3: See Key | C3: =J3-AJ2-AJ3 -> 12,796 visual | I3: =VLOOKUP(A6,'[1]DECAY 051922'!A:J,10,FALSE) ->  | J3: =COUNT($A$8:$A$29803) -> 15,779 | K3: =COUNT($A$8:$A$18787) -> 15,779 | L3: unique objects | AJ3: =COUNTIF($B6:$B38944,"I") -> 2,699 | AK3: Imaged | AL3: I | AM3: IMAGED | AN3: H | AO3: HOBBYIST | AP3: N | AQ3: NOT RECRD | AR3: C | AS3: CLASSIFIED
A4: US | B4: Code | C4: Seen
A5: 5 | C5: 2011-07-22
A6: 11 | C6: 2013-11-20
A7: 12 | C7: 2006-09-23
A8: 16 | C8: 2010-01-25
A9: 20 | C9: 2006-07-26
A10: 22 | C10: 2007-10-30
A11: 29 | C11: 2008-08-02
A12: 45 | C12: 2006-10-29
A13: 46 | C13: 2008-05-24
A14: 47 | C14: 2004-12-02
A15: 50 | C15: 2009-07-26
A16: 53 | B16: I | C16: 2017-03-15
A17: 58 | C17: 2012-04-18
A18: 59 | C18: 2005-07-06
A19: 60 | C19: 2006-05-17
A20: 63 | C20: 2006-06-15
A21: 82 | C21: 2012-04-24
A22: 107 | C22: 2012-04-16
A23: 116 | C23: 2013-07-25
A24: 117 | C24: 2011-09-27
A25: 118 | C25: 2008-03-15
A26: 119 | C26: 2007-01-02
A27: 126 | C27: 2008-11-01
A28: 128 | B28: I | C28: 2020-12-02
A29: 130 | C29: 2014-05-15
A30: 133 | B30: I | C30: 2021-04-09
A31: 134 | C31: 2006-11-22
A32: 136 | C32: 2009-11-23
A33: 162 | C33: 2012-04-16
A34: 163 | C34: 2006-06-19
A35: 165 | C35: 2007-08-09
A36: 192 | C36: 2014-07-06
A37: 202 | C37: 2012-05-17
A38: 204 | C38: 2006-07-22
A39: 205 | C39: 2012-04-16
A40: 226 | C40: 2009-07-10
A41: 228 | B41: I | C41: 2021-05-25
A42: 271 | C42: 2012-03-23
A43: 309 | C43: 2012-04-01
A44: 340 | C44: 2010-04-23
A45: 341 | C45: 2012-05-16
A46: 369 | C46: 2012-03-23
A47: 397 | C47: 2006-07-25
A48: 405 | B48: I | C48: 2018-06-11
A49: 424 | C49: 2006-10-20
A50: 426 | C50: 2005-04-21
A51: 447 | C51: 2005-03-16
A52: 503 | B52: I | C52: 2019-05-23
A53: 506 | C53: 2011-09-25
A54: 515 | C54: 2008-11-26
A55: 553 | B55: I | C55: 2021-01-22
A56: 573 | C56: 2008-04-25
A57: 574 | C57: 2006-11-08
A58: 575 | C58: 2008-04-25
A59: 622 | C59: 2006-07-25
A60: 631 | C60: 2014-09-25
A61: 634 | B61: I | C61: 2019-01-30
A62: 656 | B62: I | C62: 2017-02-20
A63: 669 | C63: 2006-07-22
A64: 671 | C64: 2008-08-22
A65: 694 | C65: 2004-06-13
A66: 698 | C66: 2011-10-21
A67: 700 | C67: 2013-10-19
A68: 701 | C68: 2006-06-16
A69: 702 | B69: I | C69: 2020-03-19
A70: 703 | C70: 2006-07-29
A71: 705 | C71: 2015-08-01
A72: 721 | C72: 2010-04-23
A73: 727 | C73: 2004-08-18
A74: 728 | C74: 2013-07-26
A75: 730 | C75: 2009-07-06
A76: 731 | C76: 2007-01-09
A77: 733 | C77: 2008-10-27
A78: 734 | C78: 2011-12-28
A79: 741 | C79: 2005-05-02
A80: 742 | C80: 2012-08-05
A81: 743 | C81: 2015-07-27
A82: 746 | C82: 2006-04-02
A83: 750 | C83: 2020-06-16
A84: 801 | C84: 2006-11-23
A85: 812 | C85: 2009-06-30
A86: 813 | C86: 2006-08-21
A87: 815 | C87: 2006-08-21
A88: 829 | C88: 2007-07-27
A89: 836 | B89: I | C89: 2021-11-01
A90: 858 | B90: I | C90: 2016-10-22
A91: 862 | B91: I | C91: 2019-02-08
A92: 870 | C92: 2010-11-26
A93: 871 | C93: 2007-08-20
A94: 876 | C94: 2004-11-04
A95: 877 | C95: 2004-12-02
A96: 879 | B96: I | C96: 2019-07-28
A97: 893 | C97: 2006-10-20
A98: 897 | C98: 2017-07-29
A99: 899 | C99: 2007-05-20
A100: 907 | C100: 2013-04-30
A101: 932 | C101: 2023-02-02
A102: 933 | C102: 2010-06-16
A103: 953 | C103: 2006-12-26
A104: 959 | C104: 2009-12-16
A105: 965 | B105: I | C105: 2021-05-28
A106: 979 | C106: 2014-12-27
A107: 1000 | C107: 2009-07-19
A108: 1001 | C108: 2006-07-01
A109: 1002 | C109: 2008-10-24
A110: 1244 | C110: 2008-07-05
A111: 1245 | C111: 2005-03-16
A112: 1271 | C112: 2007-06-05
A113: 1291 | C113: 2011-09-27
A114: 1292 | C114: 2006-05-26
A115: 1293 | C115: 2009-07-23
A116: 1314 | C116: 2005-05-14
A117: 1316 | C117: 2006-05-27
A118: 1317 | B118: I | C118: 2016-12-19
A119: 1318 | B119: I | C119: 2019-05-27
A120: 1328 | C120: 2005-06-07
A121: 1335 | C121: 2010-06-12
A122: 1358 | C122: 2008-08-02
A123: 1359 | C123: 2006-06-04
A124: 1360 | C124: 2007-04-04
A125: 1361 | C125: 2015-08-01
A126: 1377 | C126: 2007-11-07
A127: 1389 | C127: 2005-06-20
A128: 1420 | C128: 2009-06-17
A129: 1428 | C129: 2006-11-09
A130: 1430 | C130: 2013-09-03
A131: 1433 | C131: 2012-08-29
A132: 1458 | B132: I | C132: 2020-08-25
A133: 1459 | B133: I | C133: 2021-10-27
A134: 1502 | C134: 2009-06-18
A135: 1508 | C135: 2008-01-20
A136: 1510 | C136: 2013-05-13
A137: 1514 | C137: 2011-09-26
A138: 1575 | C138: 2005-06-07
A139: 1577 | C139: 2019-09-14
A140: 1580 | C140: 2009-10-17
A141: 1583 | C141: 2006-07-15
A142: 1584 | C142: 2019-07-15
A143: 1585 | C143: 2007-10-05
A144: 1589 | C144: 2007-03-24
A145: 1613 | C145: 2008-04-04
A146: 1616 | C146: 2005-04-17
A147: 1641 | C147: 2007-10-25
A148: 1642 | C148: 2005-04-02
A149: 1646 | C149: 2005-05-03
A150: 1653 | C150: 2012-06-19
A151: 1668 | C151: 2004-07-11
A152: 1680 | C152: 2006-08-18
A153: 1684 | C153: 2008-02-27
A154: 1685 | C154: 2005-09-25
A155: 1716 | C155: 2005-09-20
A156: 1726 | C156: 2015-07-27
A157: 1738 | C157: 2013-09-03
A158: 1739 | C158: 2006-06-20
A159: 1778 | C159: 2011-07-22
A160: 1804 | C160: 2007-10-04
A161: 1805 | C161: 2006-09-05
A162: 1806 | C162: 2012-06-19
A163: 1807 | C163: 2006-04-02
A164: 1814 | C164: 2009-08-07
A165: 1815 | C165: 2015-08-11
A166: 1863 | C166: 2007-10-12
A167: 1864 | C167: 2009-08-28
A168: 1865 | C168: 2020-06-06
A169: 1942 | C169: 2010-04-08
A170: 1952 | C170: 2006-06-07
A171: 1953 | C171: 2013-06-28
A172: 1982 | C172: 2006-06-20
A173: 1983 | C173: 2011-06-25
A174: 2016 | C174: 2005-12-30
A175: 2017 | C175: 2008-07-11
A176: 2091 | C176: 2010-11-08
A177: 2119 | C177: 2007-04-19
A178: 2120 | C178: 2015-08-10
A179: 2121 | C179: 2004-09-06
A180: 2122 | C180: 2011-09-27
A181: 2123 | C181: 2008-08-22
A182: 2124 | C182: 2006-05-28
A183: 2125 | C183: 2010-12-30
A184: 2142 | C184: 2005-06-07
A185: 2144 | C185: 2004-08-13
A186: 2150 | C186: 2011-10-13
A187: 2153 | B187: I | C187: 2017-03-15
A188: 2173 | C188: 2009-10-16
A189: 2174 | C189: 2004-11-24
A190: 2180 | C190: 2015-08-01
A191: 2201 | C191: 2018-04-29
A192: 2206 | C192: 2013-04-29
A193: 2207 | B193: I | C193: 2019-01-30
A194: 2215 | B194: I | C194: 2018-04-14
A195: 2216 | B195: I | C195: 2017-05-22
A196: 2217 | B196: I | C196: 2017-03-16
A197: 2218 | B197: I | C197: 2018-04-20
A198: 2219 | B198: I | C198: 2017-03-16
A199: 2220 | B199: I | C199: 2018-09-27
A200: 2221 | B200: I | C200: 2016-09-23
... 15586 more rows
